[Event "XI Paracin Festival 2018"]
[Site "Paracin"]
[Date "2018.07.10"]
[Round "6"]
[White "Gomes, Mary Ann"]
[Black "Stankovic, Milos"]
[Result "1/2-1/2"]
[ECO "B52"]
[WhiteElo "2284"]
[BlackElo "2420"]
[Annotator "NA"]
[PlyCount "125"]
[EventDate "2018.07.06"]
[EventType "swiss"]
[EventCountry "SRB"]
[SourceTitle "playchess.com"]
[Source "ChessBase"]
[SourceQuality "1"]
[TimeControl "5400+30"]

1. e4 {[%emt 0:00:00]} c5 {[%emt 0:01:57]} 2. Nf3 {[%emt 0:00:00]} d6 {[%emt 0:00:26]} 3. Bb5+ {[%emt 0:00:05]} Bd7 {[%emt 0:03:10]} 4. c4 {[%emt 0:00:13]} Nc6 {[%emt 0:00:54]} 5. Nc3 {[%emt 0:00:09]} Nf6 {[%emt 0:00:20]} 6. O-O {[%emt 0:00:15]} e6 {[%emt 0:03:31]} 7. Re1 {[%emt 0:00:07]} Be7 {[%emt 0:00:29]} 8. Bxc6 {[%emt 0:03:20]} Bxc6 {[%emt 0:01:03]} 9. d4 {[%emt 0:00:06]} cxd4 {[%emt 0:01:09]} 10. Nxd4 {[%emt 0:02:04]} Rc8 {[%emt 0:00:48]} 11. Nxc6 {[%emt 0:07:15]} Rxc6 {[%emt 0:00:20]} 12. b3 {[%emt 0:00:35]} O-O {[%emt 0:00:47]} 13. Bb2 {[%emt 0:00:12]} a6 {[%emt 0:00:40]} 14. Qd2 {[%emt 0:02:35]} Qa5 {[%emt 0:03:34]} 15. Rad1 {[%emt 0:01:02]} Qc5 {[%emt 0:01:59]} 16. h3 {[%emt 0:17:34]} Rfc8 {[%emt 0:04:48]} 17. Re3 {[%emt 0:17:23]} Nh5 {[%emt 0:06:26]} 18. Rd3 {[%emt 0:04:07]} h6 {[%emt 0:06:01]} 19. Nd5 {[%emt 0:12:42]} Bg5 {[%emt 0:02:54]} 20. Qe2 {[%emt 0:00:23]} exd5 {[%emt 0:05:10]} 21. Qxh5 {[%emt 0:00:28]} dxc4 {[%emt 0:00:33]} 22. bxc4 {[%emt 0:01:00]} Be7 {[%emt 0:10:33]} 23. Qxc5 {[%emt 0:10:59]} Rxc5 {[%emt 0:00:49]} 24. Ba3 {[%emt 0:00:05]} Rxc4 {[%emt 0:00:14]} 25. e5 {[%emt 0:00:08]} Bf8 {[%emt 0:02:19]} 26. exd6 {[%emt 0:01:50]} Rd8 {[%emt 0:00:26]} 27. Re1 {[%emt 0:03:51]} f6 {[%emt 0:02:07]} 28. d7 {[%emt 0:02:01]} Kf7 {[%emt 0:00:16]} 29. Bxf8 {[%emt 0:00:19]} Kxf8 {[%emt 0:00:07]} 30. Rd2 {[%emt 0:01:06]} Rc7 {[%emt 0:02:04]} 31. Red1 {[%emt 0:00:05]} Ke7 {[%emt 0:00:30]} 32. Re1+ {[%emt 0:00:11]} Kf7 {[%emt 0:00:07]} 33. Red1 {[%emt 0:00:04]} Rc6 {[%emt 0:01:51]} 34. f3 {[%emt 0:00:51]} Ke7 {[%emt 0:00:15]} 35. Re1+ {[%emt 0:00:49]} Re6 {[%emt 0:00:11]} 36. Red1 {[%emt 0:00:05]} b5 {[%emt 0:00:50]} 37. Kf2 {[%emt 0:00:05]} a5 {[%emt 0:01:18]} 38. Rd5 {[%emt 0:01:32]} Rb6 {[%emt 0:00:13]} 39. Re1+ {[%emt 0:02:16]} Kf7 {[%emt 0:00:10]} 40. Rb1 {[%emt 0:03:18]} b4 {[%emt 0:01:04]} 41. Rxa5 {[%emt 0:02:49]} Rxd7 {[%emt 0:00:03]} 42. Ra4 {[%emt 0:00:12]} Rd2+ {[%emt 0:01:13]} 43. Kg1 {[%emt 0:00:06]} Rc6 {[%emt 0:06:36]} 44. Rbxb4 {[%emt 0:00:26]} Rcc2 {[%emt 0:00:24]} 45. Ra7+ {[%emt 0:00:12]} Kg8 {[%emt 0:00:08]} 46. Rg4 {[%emt 0:00:11]} g5 {[%emt 0:00:09]} 47. Kh1 {[%emt 0:06:28]} Rxa2 {[%emt 0:02:17]} 48. Rxa2 {[%emt 0:00:05]} Rxa2 {[%emt 0:00:06]} 49. h4 {[%emt 0:00:13]} Kf7 {[%emt 0:00:38]} 50. hxg5 {[%emt 0:00:08]} hxg5 {[%emt 0:00:12]} 51. Kh2 {[%emt 0:00:21]} Kg6 {[%emt 0:00:07]} 52. Rb4 {[%emt 0:00:06]} f5 {[%emt 0:00:25]} 53. Rb6+ {[%emt 0:01:57]} Kh5 {[%emt 0:00:10]} 54. Rf6 {[%emt 0:00:16]} f4 {[%emt 0:00:15]} 55. Kh3 {[%emt 0:00:24]} Ra1 {[%emt 0:00:24]} 56. g4+ {[%emt 0:00:13]} fxg3 {[%emt 0:00:07]} 57. Kxg3 {[%emt 0:00:03]} Ra3 {[%emt 0:00:21]} 58. Rb6 {[%emt 0:00:16]} Rc3 {[%emt 0:00:09]} 59. Ra6 {[%emt 0:00:05]} Rb3 {[%emt 0:00:06]} 60. Rc6 {[%emt 0:00:06]} Ra3 {[%emt 0:00:05]} 61. Rb6 {[%emt 0:00:11]} Rc3 {[%emt 0:00:06]} 62. Ra6 {[%emt 0:00:05]} Rb3 {[%emt 0:00:07]} 63. Rc6 {[%emt 0:00:03]} 1/2-1/2

[Event "XI Paracin Festival 2018"]
[Site "Paracin"]
[Date "2018.07.10"]
[Round "6"]
[White "Colovic, Dusan"]
[Black "Radovanovic, Mihajlo"]
[Result "1/2-1/2"]
[ECO "A45"]
[WhiteElo "2279"]
[BlackElo "2402"]
[Annotator "NA"]
[PlyCount "113"]
[EventDate "2018.07.06"]
[EventType "swiss"]
[EventCountry "SRB"]
[SourceTitle "playchess.com"]
[Source "ChessBase"]
[SourceQuality "1"]
[TimeControl "5400+30"]

1. d4 {[%emt 0:00:00]} Nf6 {[%emt 0:00:00]} 2. Nc3 {[%emt 0:00:00]} d5 {[%emt 0:00:00]} 3. Bf4 {[%emt 0:00:00]} a6 {[%emt 0:00:16]} 4. e3 {[%emt 0:00:00]} b5 {[%emt 0:00:09]} 5. Nf3 {[%emt 0:02:45]} e6 {[%emt 0:00:11]} 6. a3 {[%emt 0:00:57]} Bb7 {[%emt 0:00:25]} 7. Ne5 {[%emt 0:00:55]} c5 {[%emt 0:00:57]} 8. g4 {[%emt 0:02:51]} Nfd7 {[%emt 0:03:29]} 9. Bg2 {[%emt 0:06:59]} Nxe5 {[%emt 0:05:28]} 10. Bxe5 {[%emt 0:03:17]} Nc6 {[%emt 0:00:22]} 11. Bg3 {[%emt 0:00:59]} cxd4 {[%emt 0:11:34]} 12. exd4 {[%emt 0:02:26]} b4 {[%emt 0:00:09]} 13. axb4 {[%emt 0:01:18]} Bxb4 {[%emt 0:00:09]} 14. O-O {[%emt 0:00:11]} Bxc3 {[%emt 0:03:30]} 15. bxc3 {[%emt 0:01:03]} O-O {[%emt 0:03:22]} 16. Qb1 {[%emt 0:08:34]} Ra7 {[%emt 0:04:29]} 17. Qa2 {[%emt 0:03:27]} a5 {[%emt 0:01:07]} 18. Rfb1 {[%emt 0:02:04]} Ba6 {[%emt 0:02:44]} 19. Qa4 {[%emt 0:00:55]} Qd7 {[%emt 0:00:59]} 20. Rb6 {[%emt 0:05:23]} Rc8 {[%emt 0:00:08]} 21. Rab1 {[%emt 0:00:14]} h6 {[%emt 0:00:41]} 22. Qa3 {[%emt 0:11:25]} Bc4 {[%emt 0:10:18]} 23. h3 {[%emt 0:01:43]} a4 {[%emt 0:00:48]} 24. Bd6 {[%emt 0:01:41]} Raa8 {[%emt 0:09:16]} 25. Bc5 {[%emt 0:13:49]} Qe8 {[%emt 0:01:17]} 26. Qc1 {[%emt 0:07:56]} Qd8 {[%emt 0:04:13]} 27. Ba3 {[%emt 0:00:23]} Rab8 {[%emt 0:02:05]} 28. Rb7 {[%emt 0:00:59]} Ba6 {[%emt 0:01:36]} 29. Rxb8 {[%emt 0:06:55]} Rxb8 {[%emt 0:00:10]} 30. Ra1 {[%emt 0:04:43]} Bc4 {[%emt 0:03:05]} 31. Qf4 {[%emt 0:01:42]} Rb7 {[%emt 0:02:17]} 32. Qe3 {[%emt 0:00:44]} Qb8 {[%emt 0:00:25]} 33. Qe1 {[%emt 0:00:37]} Bb5 {[%emt 0:03:11]} 34. Qc1 {[%emt 0:02:00]} Be2 {[%emt 0:01:51]} 35. Qe1 {[%emt 0:00:35]} Bc4 {[%emt 0:00:06]} 36. Qc1 {[%emt 0:00:07]} Bb5 {[%emt 0:06:58]} 37. Qe1 {[%emt 0:00:36]} Qf4 {[%emt 0:00:08]} 38. Bc1 {[%emt 0:00:10]} Qc7 {[%emt 0:00:06]} 39. Ba3 {[%emt 0:00:10]} Rb8 {[%emt 0:01:36]} 40. Bc5 {[%emt 0:02:09]} Ra8 {[%emt 0:01:51]} 41. Ba3 {[%emt 0:00:08]} Ne7 {[%emt 0:00:23]} 42. Bxe7 {[%emt 0:00:37]} Qxe7 {[%emt 0:00:06]} 43. Bxd5 {[%emt 0:00:10]} Ra7 {[%emt 0:00:03]} 44. Ba2 {[%emt 0:04:48]} Qc7 {[%emt 0:06:37]} 45. d5 {[%emt 0:00:33]} exd5 {[%emt 0:00:30]} 46. Bxd5 {[%emt 0:00:10]} Bc6 {[%emt 0:02:32]} 47. Bxc6 {[%emt 0:01:59]} Qxc6 {[%emt 0:00:04]} 48. Qe3 {[%emt 0:00:07]} Ra8 {[%emt 0:00:05]} 49. Qd4 {[%emt 0:01:07]} a3 {[%emt 0:03:22]} 50. c4 {[%emt 0:00:44]} a2 {[%emt 0:01:58]} 51. Qd5 {[%emt 0:00:28]} Qa4 {[%emt 0:01:03]} 52. c5 {[%emt 0:00:09]} Ra7 {[%emt 0:00:36]} 53. Qb3 {[%emt 0:00:07]} Qa5 {[%emt 0:01:38]} 54. c6 {[%emt 0:00:08]} Qe5 {[%emt 0:00:26]} 55. Rxa2 {[%emt 0:02:09]} Qe1+ {[%emt 0:00:08]} 56. Kg2 {[%emt 0:00:05]} Qe4+ {[%emt 0:00:05]} 57. Kg1 {[%emt 0:00:19]} 1/2-1/2

[Event "XI Paracin Festival 2018"]
[Site "Paracin"]
[Date "2018.07.10"]
[Round "6"]
[White "Bratkovic, Sham"]
[Black "Radovic, Luka"]
[Result "1/2-1/2"]
[ECO "B90"]
[WhiteElo "2190"]
[BlackElo "2344"]
[Annotator "NA"]
[PlyCount "66"]
[EventDate "2018.07.06"]
[EventType "swiss"]
[EventCountry "SRB"]
[SourceTitle "playchess.com"]
[Source "ChessBase"]
[SourceQuality "1"]
[TimeControl "5400+30"]

1. e4 {[%emt 0:00:00]} c5 {[%emt 0:00:20]} 2. Nf3 {[%emt 0:01:19]} d6 {[%emt 0:01:09]} 3. d4 {[%emt 0:00:29]} cxd4 {[%emt 0:00:25]} 4. Nxd4 {[%emt 0:00:07]} Nf6 {[%emt 0:00:07]} 5. Nc3 {[%emt 0:00:14]} a6 {[%emt 0:00:10]} 6. Be3 {[%emt 0:02:09]} e5 {[%emt 0:03:16]} 7. Nf3 {[%emt 0:00:49]} Be7 {[%emt 0:04:17]} 8. Bc4 {[%emt 0:04:31]} O-O {[%emt 0:02:41]} 9. O-O {[%emt 0:01:06]} Be6 {[%emt 0:06:08]} 10. Bb3 {[%emt 0:01:06]} Nc6 {[%emt 0:04:51]} 11. Qe2 {[%emt 0:01:50]} Rc8 {[%emt 0:11:35]} 12. Rfd1 {[%emt 0:05:24]} Qc7 {[%emt 0:11:23]} 13. Bg5 {[%emt 0:05:09]} Rfe8 {[%emt 0:10:10]} 14. Qd2 {[%emt 0:41:04]} Rcd8 {[%emt 0:08:06]} 15. Bxf6 {[%emt 0:05:22]} Bxf6 {[%emt 0:00:12]} 16. Nd5 {[%emt 0:00:52]} Bxd5 {[%emt 0:00:08]} 17. Qxd5 {[%emt 0:00:51]} Nd4 {[%emt 0:09:00]} 18. Ne1 {[%emt 0:03:44]} h5 {[%emt 0:08:54]} 19. g3 {[%emt 0:02:11]} g6 {[%emt 0:04:35]} 20. Kg2 {[%emt 0:02:55]} Kg7 {[%emt 0:00:42]} 21. h4 {[%emt 0:00:28]} Qd7 {[%emt 0:00:57]} 22. c3 {[%emt 0:02:22]} Ne6 {[%emt 0:00:36]} 23. Rd2 {[%emt 0:01:46]} Bxh4 {[%emt 0:01:06]} 24. Rad1 {[%emt 0:00:24]} Qe7 {[%emt 0:02:04]} 25. Nc2 {[%emt 0:03:01]} Bf6 {[%emt 0:01:28]} 26. Nb4 {[%emt 0:01:00]} Rh8 {[%emt 0:01:48]} 27. Qa5 {[%emt 0:01:53]} Bg5 {[%emt 0:02:06]} 28. Rd3 {[%emt 0:01:58]} h4 {[%emt 0:00:37]} 29. Rxd6 {[%emt 0:03:03]} Nf4+ {[%emt 0:03:15]} 30. gxf4 {[%emt 0:00:14]} Rxd6 {[%emt 0:00:10]} 31. Rxd6 {[%emt 0:00:40]} Qxd6 {[%emt 0:00:11]} 32. fxg5 {[%emt 0:00:16]} Qe7 {[%emt 0:01:24]} 33. Nd3 {[%emt 0:03:07]} Qxg5+ {[%emt 0:00:07]} 1/2-1/2

[Event "XI Paracin Festival 2018"]
[Site "Paracin"]
[Date "2018.07.10"]
[Round "6"]
[White "Uuriintuya, Uurtsaikh"]
[Black "Sylvan, Jacob"]
[Result "1-0"]
[ECO "B49"]
[WhiteElo "2158"]
[BlackElo "2332"]
[Annotator "NA"]
[PlyCount "99"]
[EventDate "2018.07.06"]
[EventType "swiss"]
[EventCountry "SRB"]
[SourceTitle "playchess.com"]
[Source "ChessBase"]
[SourceQuality "1"]
[TimeControl "5400+30"]

1. e4 c5 2. Nf3 e6 3. d4 cxd4 4. Nxd4 Nc6 5. Nc3 Qc7 6. Be3 a6 7. Be2 Nf6 8. O-O Be7 9. f4 d6 10. a4 O-O 11. Kh1 Bd7 12. Nb3 b6 13. Bf3 Bc8 14. g4 Bb7 15. g5 Nd7 16. Bg2 Rfe8 17. Rf3 Nb4 18. Rh3 g6 19. Qd2 Nc5 20. Qf2 Nxb3 21. Bxb6 Qc8 22. cxb3 d5 23. Bd4 h5 24. gxh6 Kh7 25. f5 exf5 26. exf5 Rf8 27. Rf3 g5 28. f6 Bd6 29. Re1 g4 30. Rfe3 Nc6 31. Re7 Rb8 32. Nxd5 g3 33. Qc2+ Kh8 34. Bc3 Qg4 35. h3 Qh5 36. Qe2 Qxh6 37. Qc4 Rg8 38. Rxf7 Bc8 39. Qe4 Bxh3 40. Rh7+ Qxh7 41. f7+ Rg7 42. Bxg7+ Kxg7 43. Qxh7+ Kxh7 44. Bxh3 Kg7 45. Re6 Rd8 46. Ne3 Nd4 47. Re4 Nc6 48. Re6 Nd4 49. Re8 Rb8 50. f8=Q+ 1-0

[Event "XI Paracin Festival 2018"]
[Site "Paracin"]
[Date "2018.07.10"]
[Round "6"]
[White "Tugstumur, Yesuntumur"]
[Black "Damljanovic, Branko"]
[Result "1/2-1/2"]
[ECO "A53"]
[WhiteElo "2116"]
[BlackElo "2508"]
[Annotator "ChessBase"]
[PlyCount "70"]
[EventDate "2018.07.06"]
[EventType "swiss"]
[EventCountry "SRB"]
[SourceTitle "playchess.com"]
[Source "ChessBase"]
[SourceQuality "1"]
[TimeControl "5400+30"]

1. d4 {[%emt 0:00:00]} Nf6 {[%emt 0:00:00]} 2. c4 {[%emt 0:00:00]} d6 {[%emt 0:00:05]} 3. Nc3 {[%emt 0:01:04]} Bf5 {[%emt 0:00:09]} 4. g3 {[%emt 0:02:18]} e5 {[%emt 0:02:05]} 5. dxe5 {[%emt 0:03:45]} dxe5 {[%emt 0:00:03]} 6. Qxd8+ {[%emt 0:00:12]} Kxd8 {[%emt 0:00:01]} 7. Bg5 {[%emt 0:00:13]} Nbd7 {[%emt 0:03:29]} 8. O-O-O {[%emt 0:00:47]} Be7 {[%emt 0:06:09]} 9. Nf3 {[%emt 0:05:27]} Kc8 {[%emt 0:04:39]} 10. e4 {[%emt 0:10:08]} Be6 {[%emt 0:01:22]} 11. Bxf6 {[%emt 0:02:36]} gxf6 {[%emt 0:01:30]} 12. h4 {[%emt 0:02:07]} Bc5 {[%emt 0:04:24]} 13. Rd2 {[%emt 0:01:36]} Bb4 {[%emt 0:01:00]} 14. Rc2 {[%emt 0:01:13]} a5 {[%emt 0:01:01]} 15. Nd5 {[%emt 0:09:09]} c6 {[%emt 0:09:02]} 16. Bg2 {[%emt 0:08:11]} Bc5 {[%emt 0:04:43]} 17. Nh2 {[%emt 0:07:39]} a4 {[%emt 0:03:27]} 18. Re1 {[%emt 0:03:32]} h5 {[%emt 0:14:11]} 19. Kb1 {[%emt 0:03:56]} Ra5 {[%emt 0:02:28]} 20. Ne3 {[%emt 0:06:32]} Nb6 {[%emt 0:00:45]} 21. Nd5 {[%emt 0:02:00]} Nd7 {[%emt 0:03:37]} 22. Nf1 {[%emt 0:01:35]} b5 {[%emt 0:06:19]} 23. a3 {[%emt 0:05:22]} bxc4 {[%emt 0:02:21]} 24. Nde3 {[%emt 0:00:13]} Nb6 {[%emt 0:00:25]} 25. Nd2 {[%emt 0:01:28]} Bxe3 {[%emt 0:04:30]} 26. Rxe3 {[%emt 0:00:07]} Rc5 {[%emt 0:00:14]} 27. Bf1 {[%emt 0:01:12]} f5 {[%emt 0:04:23]} 28. Bh3 {[%emt 0:01:33]} f4 {[%emt 0:01:32]} 29. Bxe6+ {[%emt 0:00:06]} fxe6 {[%emt 0:00:01]} 30. Rec3 {[%emt 0:00:12]} Rd8 {[%emt 0:16:17]} 31. Kc1 {[%emt 0:02:54]} Rd4 {[%emt 0:00:49]} 32. Rf3 {[%emt 0:00:25]} Nd7 {[%emt 0:00:20]} 33. Rfc3 {[%emt 0:01:51]} Nb6 {[%emt 0:02:46]} 34. Rf3 {[%emt 0:00:07]} Nd7 {[%emt 0:01:02]} 35. Rfc3 {[%emt 0:00:05]} Nb6 {[%emt 0:00:16]} 1/2-1/2

[Event "XI Paracin Festival 2018"]
[Site "Paracin"]
[Date "2018.07.11"]
[Round "7"]
[White "Damljanovic, Branko"]
[Black "Avalyan, Artur"]
[Result "0-1"]
[ECO "A13"]
[WhiteElo "2508"]
[BlackElo "2315"]
[Annotator "ChessBase"]
[PlyCount "70"]
[EventDate "2018.07.06"]
[EventType "swiss"]
[EventCountry "SRB"]
[SourceTitle "playchess.com"]
[Source "ChessBase"]
[SourceQuality "1"]
[TimeControl "5400+30"]

1. c4 {[%emt 0:01:49]} e6 {[%emt 0:00:00]} 2. Nf3 {[%emt 0:00:11]} d5 {[%emt 0:00:05]} 3. g3 {[%emt 0:00:45]} Nf6 {[%emt 0:00:13]} 4. Bg2 {[%emt 0:00:01]} dxc4 {[%emt 0:00:22]} 5. Qa4+ {[%emt 0:00:30]} Bd7 {[%emt 0:00:29]} 6. Qxc4 {[%emt 0:00:02]} c5 {[%emt 0:00:44]} 7. O-O {[%emt 0:00:35]} Bc6 {[%emt 0:03:23]} 8. Nc3 {[%emt 0:03:06]} Nbd7 {[%emt 0:00:42]} 9. e4 {[%emt 0:05:03]} Be7 {[%emt 0:11:51]} 10. Qe2 {[%emt 0:01:16]} b5 {[%emt 0:19:04]} 11. d4 {[%emt 0:12:47]} b4 {[%emt 0:01:25]} 12. d5 {[%emt 0:00:03]} Bb7 {[%emt 0:02:42]} 13. dxe6 {[%emt 0:00:55]} fxe6 {[%emt 0:00:05]} 14. e5 {[%emt 0:04:04]} Nd5 {[%emt 0:02:11]} 15. Nxd5 {[%emt 0:03:32]} Bxd5 {[%emt 0:03:08]} 16. Rd1 {[%emt 0:00:37]} O-O {[%emt 0:03:05]} 17. b3 {[%emt 0:01:19]} Qc7 {[%emt 0:04:18]} 18. Bf4 {[%emt 0:09:44]} Qb7 {[%emt 0:00:18]} 19. Ne1 {[%emt 0:04:05]} g6 {[%emt 0:11:55]} 20. Rxd5 {[%emt 0:08:10]} exd5 {[%emt 0:00:22]} 21. Nc2 {[%emt 0:02:27]} Nb6 {[%emt 0:05:50]} 22. Ne3 {[%emt 0:02:30]} Rad8 {[%emt 0:00:25]} 23. Rd1 {[%emt 0:01:40]} Qc6 {[%emt 0:02:07]} 24. Qa6 {[%emt 0:06:39]} Kg7 {[%emt 0:08:32]} 25. Nxd5 {[%emt 0:18:19]} Qe6 {[%emt 0:11:25]} 26. Rd2 {[%emt 0:04:32]} g5 {[%emt 0:03:08]} 27. Nxe7 {[%emt 0:04:05]} gxf4 {[%emt 0:00:52]} 28. Qxa7 {[%emt 0:00:33]} Rd7 {[%emt 0:00:49]} 29. Rxd7 {[%emt 0:00:14]} Nxd7 {[%emt 0:00:07]} 30. Nd5 {[%emt 0:04:24]} f3 {[%emt 0:00:25]} 31. Nf6 {[%emt 0:00:06]} Rf7 {[%emt 0:00:23]} 32. Qa8 {[%emt 0:00:02]} Nxe5 {[%emt 0:02:47]} 33. Nh5+ {[%emt 0:01:26]} Kh6 {[%emt 0:00:03]} 34. Nf4 {[%emt 0:00:01]} Rxf4 {[%emt 0:00:36]} 35. gxf4 {[%emt 0:01:18]} Qg6 {[%emt 0:00:03]} 0-1

[Event "XI Paracin Festival 2018"]
[Site "Paracin"]
[Date "2018.07.11"]
[Round "7"]
[White "Tan, Justin"]
[Black "Petrov, Martin"]
[Result "1-0"]
[ECO "A05"]
[WhiteElo "2481"]
[BlackElo "2441"]
[Annotator "RC"]
[PlyCount "79"]
[EventDate "2018.07.06"]
[EventType "swiss"]
[EventCountry "SRB"]
[SourceTitle "playchess.com"]
[Source "ChessBase"]
[SourceQuality "1"]
[TimeControl "5400+30"]

1. Nf3 {[%emt 0:00:00]} Nf6 {[%emt 0:01:17]} 2. g3 {[%emt 0:00:00]} d5 {[%emt 0:01:30]} 3. Bg2 {[%emt 0:00:00]} e6 {[%emt 0:00:24]} 4. O-O {[%emt 0:00:00]} Be7 {[%emt 0:00:11]} 5. c4 {[%emt 0:00:19]} O-O {[%emt 0:00:10]} 6. d4 {[%emt 0:00:02]} dxc4 {[%emt 0:00:13]} 7. Qc2 {[%emt 0:00:18]} a6 {[%emt 0:00:16]} 8. a4 {[%emt 0:00:09]} Bd7 {[%emt 0:01:51]} 9. Qxc4 {[%emt 0:01:32]} Bc6 {[%emt 0:00:05]} 10. Bg5 {[%emt 0:00:32]} a5 {[%emt 0:00:06]} 11. Nc3 {[%emt 0:02:55]} Na6 {[%emt 0:04:38]} 12. Bxf6 {[%emt 0:00:12]} Bxf6 {[%emt 0:00:05]} 13. e4 {[%emt 0:00:04]} Nb4 {[%emt 0:00:05]} 14. Rfd1 {[%emt 0:00:49]} b6 {[%emt 0:06:24]} 15. h4 {[%emt 0:02:27]} Bb7 {[%emt 0:01:15]} 16. Qe2 {[%emt 0:01:51]} Ba6 {[%emt 0:08:56]} 17. Qd2 {[%emt 0:00:19]} Rc8 {[%emt 0:02:55]} 18. Rac1 {[%emt 0:14:50]} c5 {[%emt 0:10:29]} 19. Qe3 {[%emt 0:08:44]} cxd4 {[%emt 0:02:56]} 20. Nxd4 {[%emt 0:00:11]} Bxd4 {[%emt 0:03:24]} 21. Rxd4 {[%emt 0:02:41]} Qc7 {[%emt 0:14:47]} 22. h5 {[%emt 0:15:02]} Qc5 {[%emt 0:13:26]} 23. h6 {[%emt 0:03:24]} Rfd8 {[%emt 0:00:09]} 24. Ne2 {[%emt 0:12:44]} Rxd4 {[%emt 0:00:22]} 25. Rxc5 {[%emt 0:00:04]} Rd1+ {[%emt 0:00:04]} 26. Kh2 {[%emt 0:00:41]} Rxc5 {[%emt 0:00:05]} 27. e5 {[%emt 0:01:00]} gxh6 {[%emt 0:02:58]} 28. Nc3 {[%emt 0:00:53]} Rd3 {[%emt 0:05:24]} 29. Qxh6 {[%emt 0:00:10]} Rxe5 {[%emt 0:00:16]} 30. Ne4 {[%emt 0:02:44]} Nd5 {[%emt 0:02:08]} 31. Ng5 {[%emt 0:05:10]} Rf5 {[%emt 0:01:02]} 32. Nxe6 {[%emt 0:01:20]} fxe6 {[%emt 0:02:18]} 33. Qxe6+ {[%emt 0:00:02]} Kg7 {[%emt 0:01:44]} 34. Qxf5 {[%emt 0:00:06]} Nf6 {[%emt 0:00:04]} 35. g4 {[%emt 0:02:19]} h6 {[%emt 0:01:45]} 36. Bb7 {[%emt 0:02:22]} Bc4 {[%emt 0:01:44]} 37. Be4 {[%emt 0:00:11]} Rd6 {[%emt 0:01:04]} 38. Qe5 {[%emt 0:03:54]} Rd7 {[%emt 0:02:48]} 39. Bf5 {[%emt 0:01:39]} Rd2 {[%emt 0:00:33]} 40. Qf4 {[%emt 0:01:50]} 1-0

[Event "XI Paracin Festival 2018"]
[Site "Paracin"]
[Date "2018.07.11"]
[Round "7"]
[White "Milanovic, Danilo"]
[Black "Savanovic, Vuk"]
[Result "1-0"]
[ECO "E98"]
[WhiteElo "2471"]
[BlackElo "2294"]
[Annotator "RC"]
[PlyCount "85"]
[EventDate "2018.07.06"]
[EventType "swiss"]
[EventCountry "SRB"]
[SourceTitle "playchess.com"]
[Source "ChessBase"]
[SourceQuality "1"]
[TimeControl "5400+30"]

1. d4 {[%emt 0:01:31]} Nf6 {[%emt 0:00:00]} 2. Nf3 {[%emt 0:00:21]} g6 {[%emt 0:00:00]} 3. c4 {[%emt 0:00:28]} Bg7 {[%emt 0:00:11]} 4. Nc3 {[%emt 0:00:06]} O-O {[%emt 0:00:13]} 5. e4 {[%emt 0:00:07]} d6 {[%emt 0:00:26]} 6. Be2 {[%emt 0:00:09]} e5 {[%emt 0:00:08]} 7. O-O {[%emt 0:00:08]} Nc6 {[%emt 0:00:34]} 8. d5 {[%emt 0:03:48]} Ne7 {[%emt 0:00:10]} 9. Ne1 {[%emt 0:00:31]} Nd7 {[%emt 0:00:20]} 10. Be3 {[%emt 0:02:28]} f5 {[%emt 0:00:42]} 11. f3 {[%emt 0:00:09]} f4 {[%emt 0:00:25]} 12. Bf2 {[%emt 0:01:21]} g5 {[%emt 0:00:19]} 13. g4 {[%emt 0:00:47]} fxg3 {[%emt 0:04:35]} 14. hxg3 {[%emt 0:00:22]} Ng6 {[%emt 0:01:56]} 15. Ng2 {[%emt 0:35:00]} Nf6 {[%emt 0:13:18]} 16. Ne3 {[%emt 0:02:29]} h5 {[%emt 0:04:11]} 17. Kg2 {[%emt 0:20:20]} g4 {[%emt 0:15:12]} 18. fxg4 {[%emt 0:10:38]} Nxg4 {[%emt 0:01:19]} 19. Nxg4 {[%emt 0:00:11]} hxg4 {[%emt 0:00:09]} 20. Be3 {[%emt 0:00:24]} Rxf1 {[%emt 0:03:12]} 21. Qxf1 {[%emt 0:00:44]} Bf6 {[%emt 0:03:23]} 22. Qh1 {[%emt 0:00:51]} Bg5 {[%emt 0:00:07]} 23. Qh5 {[%emt 0:09:58]} Nh4+ {[%emt 0:00:24]} 24. gxh4 {[%emt 0:00:04]} Bxe3 {[%emt 0:00:06]} 25. Rf1 {[%emt 0:00:08]} Bf4 {[%emt 0:01:00]} 26. Bxg4 {[%emt 0:00:10]} Bxg4 {[%emt 0:05:59]} 27. Qxg4+ {[%emt 0:00:05]} Kh7 {[%emt 0:00:06]} 28. Qh5+ {[%emt 0:01:19]} Kg7 {[%emt 0:00:10]} 29. Kf3 {[%emt 0:04:51]} Qf6 {[%emt 0:01:23]} 30. Rg1+ {[%emt 0:00:04]} Kf8 {[%emt 0:00:12]} 31. Rg6 {[%emt 0:00:12]} Qf7 {[%emt 0:00:05]} 32. Qf5 {[%emt 0:00:42]} Qxf5 {[%emt 0:00:40]} 33. exf5 {[%emt 0:00:06]} Kf7 {[%emt 0:00:36]} 34. Ne4 {[%emt 0:00:26]} Rb8 {[%emt 0:02:05]} 35. Ng5+ {[%emt 0:01:16]} Bxg5 {[%emt 0:00:43]} 36. hxg5 {[%emt 0:00:04]} Rh8 {[%emt 0:00:06]} 37. Rh6 {[%emt 0:02:02]} Rxh6 {[%emt 0:00:10]} 38. gxh6 {[%emt 0:00:08]} Kf6 {[%emt 0:01:40]} 39. Ke4 {[%emt 0:00:46]} Kf7 {[%emt 0:00:09]} 40. c5 {[%emt 0:00:38]} Kf6 {[%emt 0:00:14]} 41. b4 {[%emt 0:00:39]} a6 {[%emt 0:00:26]} 42. a4 {[%emt 0:00:31]} Kf7 {[%emt 0:00:46]} 43. a5 {[%emt 0:00:29]} 1-0

[Event "XI Paracin Festival 2018"]
[Site "Paracin"]
[Date "2018.07.11"]
[Round "7"]
[White "Kosic, Dragan"]
[Black "Perunovic, Milos"]
[Result "1/2-1/2"]
[ECO "D10"]
[WhiteElo "2463"]
[BlackElo "2596"]
[Annotator "ChessBase"]
[PlyCount "41"]
[EventDate "2018.07.06"]
[EventType "swiss"]
[EventCountry "SRB"]
[SourceTitle "playchess.com"]
[Source "ChessBase"]
[SourceQuality "1"]
[TimeControl "5400+30"]

1. d4 {[%emt 0:00:00]} d5 {[%emt 0:00:00]} 2. c4 {[%emt 0:00:00]} c6 {[%emt 0:00:00]} 3. Nc3 {[%emt 0:00:00]} Nf6 {[%emt 0:00:03]} 4. cxd5 {[%emt 0:00:26]} cxd5 {[%emt 0:00:05]} 5. Bf4 {[%emt 0:00:13]} Nc6 {[%emt 0:00:05]} 6. e3 {[%emt 0:00:31]} Bf5 {[%emt 0:00:13]} 7. Bd3 {[%emt 0:00:27]} Bxd3 {[%emt 0:00:07]} 8. Qxd3 {[%emt 0:00:07]} e6 {[%emt 0:00:04]} 9. Nf3 {[%emt 0:00:06]} Bd6 {[%emt 0:00:10]} 10. Bxd6 {[%emt 0:00:08]} Qxd6 {[%emt 0:00:03]} 11. O-O {[%emt 0:00:14]} O-O {[%emt 0:00:06]} 12. Rfc1 {[%emt 0:00:27]} Rfc8 {[%emt 0:00:07]} 13. h3 {[%emt 0:01:21]} a6 {[%emt 0:00:06]} 14. Na4 {[%emt 0:00:36]} Ne7 {[%emt 0:00:23]} 15. Ne5 {[%emt 0:00:42]} Rc7 {[%emt 0:00:17]} 16. Rxc7 {[%emt 0:00:33]} Qxc7 {[%emt 0:00:03]} 17. Nc5 {[%emt 0:00:27]} Ng6 {[%emt 0:00:07]} 18. Nxg6 {[%emt 0:00:05]} hxg6 {[%emt 0:00:03]} 19. Rc1 {[%emt 0:00:12]} Rc8 {[%emt 0:00:06]} 20. Nb3 {[%emt 0:00:08]} Qd8 {[%emt 0:00:04]} 21. Rxc8 {[%emt 0:00:05]} 1/2-1/2